fUSD/lending_fUSD_20241107
["ID","MTS","AMOUNT","RATE_DAILY","PERIOD"]
[341592857,1731012633646,-500.0,0.00027397,2]
[341592858,1731012633655,-500.0,0.00027397,2]
[341592859,1731012633665,-500.0,0.00027397,2]
[341592860,1731012633674,-500.0,0.00027397,2]
[341592861,1731012633683,-500.0,0.00027397,2]
[341592862,1731012633693,-235.57141328,0.00027397,2]
[341592863,1731012633702,-500.0,0.00027397,2]
[341592864,1731012633711,-500.0,0.00027397,2]
[341592865,1731012633721,-500.0,0.00027397,2]
[341592866,1731012633731,-511.81467233,0.00027397,2]
[341592867,1731012633741,-985.93,0.00027397,2]
[341592868,1731012633750,-500.0,0.00027397,2]
[341592869,1731012633759,-500.0,0.00027397,2]
[341592870,1731012633768,-620.71,0.00027397,2]
[341592871,1731012633778,-500.0,0.00027397,2]
[341592872,1731012633787,-521.26747256,0.00027397,2]
[341592873,1731012633796,-500.0,0.00027397,2]
[341592874,1731012633806,-500.0,0.00027397,2]
[341592875,1731012633815,-500.0,0.00027397,2]
[341592876,1731012633825,-500.0,0.00027397,2]
[341592877,1731012633835,-454.58351534,0.00027397,2]
[341592878,1731012633845,-500.0,0.00027397,2]
[341592879,1731012633854,-500.0,0.00027397,2]
[341592880,1731012633864,-500.0,0.00027397,2]
[341592881,1731012633874,-500.0,0.00027397,2]
[341592882,1731012633884,-500.0,0.00027397,2]
[341592883,1731012633893,-500.0,0.00027397,2]
[341592884,1731012633902,-500.0,0.00027397,2]
[341592885,1731012633911,-500.0,0.00027397,2]
[341592886,1731012633921,-681.74,0.00027397,2]
[341592887,1731012633931,-500.0,0.00027397,2]
[341592888,1731012633940,-552.0010141,0.00027397,2]
[341592889,1731012633949,-500.0,0.00027397,2]
[341592890,1731012633958,-95.57643811,0.00027397,2]
[341592891,1731012633975,-404.42356189,0.00027397,2]
[341592892,1731012633985,-500.0,0.00027397,2]
[341592893,1731012633994,-500.0,0.00027397,2]
[341592894,1731012634005,-344.24,0.00027397,2]
[341592895,1731012634014,-500.0,0.00027397,2]
[341592896,1731012634023,-500.0,0.00027397,2]
[341592897,1731012634034,-500.0,0.00027397,2]
[341592898,1731012634043,-500.0,0.00027397,2]
[341592899,1731012634052,-500.0,0.00027397,2]
[341592900,1731012634062,-500.0,0.00027397,2]
[341592901,1731012634071,-500.0,0.00027397,2]
[341592902,1731012634081,-500.0,0.00027397,2]
[341592903,1731012634090,-500.0,0.00027397,2]
[341592904,1731012634100,-500.0,0.00027397,2]
[341592905,1731012634109,-554.45,0.00027397,2]
[341592906,1731012634119,-500.0,0.00027397,2]
[341592907,1731012634128,-279.00984022,0.00027397,2]
[341592908,1731012634137,-500.0,0.00027397,2]
[341592909,1731012634147,-500.0,0.00027397,2]
[341592910,1731012634156,-500.0,0.00027397,2]
[341592911,1731012634165,-182.99839896,0.00027397,2]
[341592912,1731012634175,-500.0,0.00027397,2]
[341592913,1731012634184,-500.0,0.00027397,2]
[341592914,1731012634194,-500.0,0.00027397,2]
[341592915,1731012634203,-500.0,0.00027397,2]
[341592916,1731012634212,-500.0,0.00027397,2]
[341592917,1731012634223,-500.0,0.00027397,2]
[341592918,1731012634233,-667.74,0.00027397,2]
[341592919,1731012634242,-500.0,0.00027397,2]
[341592920,1731012634252,-500.0,0.00027397,2]
[341592921,1731012634261,-500.0,0.00027397,2]
[341592922,1731012634271,-500.0,0.00027397,2]
[341592923,1731012634281,-346.44656923,0.00027397,2]
[341592924,1731012634291,-500.0,0.00027397,2]
[341592925,1731012634300,-500.0,0.00027397,2]
[341592926,1731012634310,-500.0,0.00027397,2]
[341592927,1731012634319,-500.0,0.00027397,2]
[341592928,1731012634329,-500.0,0.00027397,2]
[341592929,1731012634341,-500.0,0.00027397,2]
[341592930,1731012634353,-500.0,0.00027397,2]
[341592931,1731012634363,-500.0,0.00027397,2]
[341592932,1731012634372,-500.0,0.00027397,2]
[341592933,1731012634382,-500.0,0.00027397,2]
[341592934,1731012634392,-500.0,0.00027397,2]
[341592935,1731012634402,-500.0,0.00027397,2]
[341592936,1731012634411,-500.0,0.00027397,2]
[341592937,1731012634421,-1000.0,0.00027397,2]
[341592938,1731012634431,-441.42107385,0.00027397,2]
[341592939,1731012634440,-500.0,0.00027397,2]
[341592940,1731012634450,-500.0,0.00027397,2]
[341592941,1731012634460,-500.0,0.00027397,2]
[341592942,1731012634469,-500.0,0.00027397,2]
[341592943,1731012634480,-500.0,0.00027397,2]
[341592944,1731012634490,-500.0,0.00027397,2]
[341592945,1731012634500,-500.0,0.00027397,2]
[341592946,1731012634510,-500.0,0.00027397,2]
[341592947,1731012634519,-500.0,0.00027397,2]
[341592948,1731012634529,-500.0,0.00027397,2]
[341592949,1731012634538,-531.92,0.00027397,2]
[341592950,1731012634548,-500.0,0.00027397,2]
[341592951,1731012634557,-500.0,0.00027397,2]
[341592952,1731012634567,-500.0,0.00027397,2]
[341592953,1731012634576,-500.0,0.00027397,2]
[341592954,1731012634586,-624.38,0.00027397,2]
[341592955,1731012634595,-500.0,0.00027397,2]
[341592956,1731012634605,-500.0,0.00027397,2]
[341592957,1731012634614,-500.0,0.00027397,2]
[341592958,1731012634624,-500.0,0.00027397,2]
[341592959,1731012634634,-500.0,0.00027397,2]
[341592960,1731012634643,-500.0,0.00027397,2]
[341592961,1731012634651,-500.0,0.00027397,2]
[341592962,1731012634661,-500.0,0.00027397,2]
[341592963,1731012634670,-500.0,0.00027397,2]
[341592964,1731012634679,-500.0,0.00027397,2]
[341592965,1731012634688,-500.0,0.00027397,2]
[341592966,1731012634698,-500.0,0.00027397,2]
[341592967,1731012634707,-500.0,0.00027397,2]
[341592968,1731012634716,-500.0,0.00027397,2]
[341592969,1731012634728,-500.0,0.00027397,2]
[341592970,1731012634737,-500.0,0.00027397,2]
[341592971,1731012634744,-601.33,0.00027397,2]
[341592972,1731012634754,-500.0,0.00027397,2]
[341592973,1731012634764,-500.0,0.00027397,2]
[341592974,1731012634773,-500.0,0.00027397,2]
[341592975,1731012634782,-500.0,0.00027397,2]
[341592976,1731012634792,-500.0,0.00027397,2]
[341592977,1731012634801,-500.0,0.00027397,2]
[341592978,1731012634810,-500.0,0.00027397,2]
[341592979,1731012634819,-500.0,0.00027397,2]
[341592980,1731012634828,-500.0,0.00027397,2]
[341592981,1731012634838,-778.35,0.00027397,2]
[341592982,1731012634848,-500.0,0.00027397,2]
[341592983,1731012634857,-1744.56,0.00027397,2]
[341592984,1731012634867,-286.1049921,0.00027397,2]
[341592985,1731012634894,-402.2350079,0.00027397,2]
[341592986,1731012634905,-602.41,0.00027397,2]
[341592987,1731012634915,-500.0,0.00027397,2]
[341592988,1731012634925,-500.0,0.00027397,2]
[341592989,1731012634935,-3226.65,0.00027397,2]
[341592990,1731012634944,-500.0,0.00027397,2]
[341592991,1731012634954,-788.78,0.00027397,2]
[341592992,1731012634964,-500.0,0.00027397,2]
[341592993,1731012634975,-500.0,0.00027397,2]
[341592994,1731012634984,-500.0,0.00027397,2]
[341592995,1731012634994,-818.49,0.00027397,2]
[341592996,1731012635004,-500.0,0.00027397,2]
[341592997,1731012635013,-500.0,0.00027397,2]
[341592998,1731012635023,-500.0,0.00027397,2]
[341592999,1731012635033,-827.58,0.00027397,2]
[341593000,1731012635042,-500.0,0.00027397,2]
[341593001,1731012635051,-500.0,0.00027397,2]
[341593002,1731012635061,-500.0,0.00027397,2]
[341593003,1731012635070,-500.0,0.00027397,2]
[341593004,1731012635079,-500.0,0.00027397,2]
[341593005,1731012635088,-500.0,0.00027397,2]
[341593006,1731012635097,-698.4,0.00027397,2]
[341593007,1731012635107,-500.0,0.00027397,2]
[341593008,1731012635116,-956.55,0.00027397,2]
[341593009,1731012635126,-598.05,0.00027397,2]
[341593010,1731012635135,-500.0,0.00027397,2]
[341593011,1731012635144,-500.0,0.00027397,2]
[341593012,1731012635154,-500.0,0.00027397,2]
[341593013,1731012635163,-500.0,0.00027397,2]
[341593014,1731012635172,-677.4,0.00027397,2]
[341593015,1731012635185,-500.0,0.00027397,2]
[341593016,1731012635195,-813.26,0.00027397,2]
[341593017,1731012635204,-500.0,0.00027397,2]
[341593018,1731012635214,-500.0,0.00027397,2]
[341593019,1731012635224,-668.93,0.00027397,2]
[341593020,1731012635234,-500.0,0.00027397,2]
[341593021,1731012635248,-764.06,0.00027397,2]
[341593022,1731012635258,-500.0,0.00027397,2]
[341593023,1731012635267,-500.0,0.00027397,2]
[341593024,1731012635277,-500.0,0.00027397,2]
[341593025,1731012635286,-500.0,0.00027397,2]
[341593026,1731012635295,-500.0,0.00027397,2]
[341593027,1731012635304,-693.83,0.00027397,2]
[341593028,1731012635313,-500.0,0.00027397,2]
[341593029,1731012635325,-500.0,0.00027397,2]
[341593030,1731012635334,-500.0,0.00027397,2]
[341593031,1731012635347,-530.85,0.00027397,2]
[341593033,1731012635356,-600.35,0.00027397,2]
[341593034,1731012635365,-380.02147727,0.00027397,2]
[341593036,1731012635375,-634.47,0.00027397,2]
[341593038,1731012635384,-500.0,0.00027397,2]
[341593041,1731012635395,-528.95,0.00027397,2]
[341593042,1731012635405,-676.55,0.00027397,2]
[341593043,1731012635414,-500.0,0.00027397,2]
[341593044,1731012635426,-500.0,0.00027397,2]
[341593045,1731012635436,-647.38,0.00027397,2]
[341593046,1731012635446,-500.0,0.00027397,2]
[341593047,1731012635455,-500.0,0.00027397,2]
[341593048,1731012635464,-505.67493409,0.00027397,2]
[341593049,1731012635475,-500.0,0.00027397,2]
[341593050,1731012635484,-770.3,0.00027397,2]
[341593051,1731012635493,-500.0,0.00027397,2]
[341593052,1731012635502,-500.0,0.00027397,2]
[341593053,1731012635512,-500.0,0.00027397,2]
[341593054,1731012635522,-1161.48,0.00027397,2]
[341593055,1731012635531,-500.0,0.00027397,2]
[341593056,1731012635540,-500.0,0.00027397,2]
[341593057,1731012635549,-500.0,0.00027397,2]
[341593058,1731012635558,-500.0,0.00027397,2]
[341593059,1731012635567,-500.0,0.00027397,2]
[341593060,1731012635576,-500.0,0.00027397,2]
[341593061,1731012635585,-500.0,0.00027397,2]
[341593062,1731012635594,-500.0,0.00027397,2]
[341593063,1731012635603,-518.59371355,0.00027397,2]
[341593064,1731012635612,-500.0,0.00027397,2]
[341593065,1731012635621,-500.0,0.00027397,2]
[341593066,1731012635630,-500.0,0.00027397,2]
[341593067,1731012635639,-500.0,0.00027397,2]
[341593068,1731012635648,-500.0,0.00027397,2]
[341593069,1731012635658,-500.0,0.00027397,2]
[341593070,1731012635667,-500.0,0.00027397,2]
[341593071,1731012635677,-500.0,0.00027397,2]
[341593072,1731012635686,-500.0,0.00027397,2]
[341593073,1731012635695,-500.0,0.00027397,2]
[341593074,1731012635704,-500.0,0.00027397,2]
[341593075,1731012635713,-500.0,0.00027397,2]
[341593076,1731012635723,-500.0,0.00027397,2]
[341593077,1731012635734,-853.22,0.00027397,2]
[341593078,1731012635744,-500.0,0.00027397,2]
[341593079,1731012635753,-500.0,0.00027397,2]
[341593080,1731012635763,-500.0,0.00027397,2]
[341593081,1731012635772,-1595.27,0.00027397,2]
[341593082,1731012635781,-500.0,0.00027397,2]
[341593083,1731012635790,-500.0,0.00027397,2]
[341593084,1731012635799,-500.0,0.00027397,2]
[341593085,1731012635808,-500.0,0.00027397,2]
[341593086,1731012635817,-781.21,0.00027397,2]
[341593087,1731012636075,-500.0,0.00027397,2]
[341593088,1731012636085,-624.19,0.00027397,2]
[341593089,1731012636095,-771.53,0.00027397,2]
[341593090,1731012636105,-500.0,0.00027397,2]
[341593091,1731012636114,-552.21,0.00027397,2]
[341593092,1731012636124,-500.0,0.00027397,2]
[341593093,1731012636133,-579.51,0.00027397,2]
[341593094,1731012636143,-500.0,0.00027397,2]
[341593095,1731012636152,-500.0,0.00027397,2]
[341593096,1731012636163,-766.64,0.00027397,2]
[341593097,1731012636173,-500.0,0.00027397,2]
[341593098,1731012636182,-628.45,0.00027397,2]
[341593099,1731012636191,-500.0,0.00027397,2]
[341593100,1731012636201,-502.15,0.00027397,2]
[341593101,1731012636210,-500.0,0.00027397,2]
[341593102,1731012636220,-535.99,0.00027397,2]
[341593103,1731012636231,-500.0,0.00027397,2]
[341593104,1731012636241,-500.0,0.00027397,2]
[341593105,1731012636250,-500.0,0.00027397,2]
[341593106,1731012636259,-500.0,0.00027397,2]
[341593107,1731012636268,-500.0,0.00027397,2]
[341593108,1731012636277,-500.0,0.00027397,2]
[341593109,1731012636287,-588.98,0.00027397,2]
[341593110,1731012636296,-500.0,0.00027397,2]
[341593111,1731012636306,-500.0,0.00027397,2]
[341593112,1731012636315,-500.0,0.00027397,2]
[341593113,1731012636324,-506.98,0.00027397,2]
[341593114,1731012636333,-500.0,0.00027397,2]
[341593115,1731012636344,-500.0,0.00027397,2]
[341593116,1731012636355,-500.0,0.00027397,2]
[341593117,1731012636365,-500.0,0.00027397,2]
[341593118,1731012636374,-500.0,0.00027397,2]
[341593119,1731012636384,-500.0,0.00027397,2]
[341593120,1731012636393,-500.0,0.00027397,2]
[341593121,1731012636402,-715.56,0.00027397,2]
[341593122,1731012636411,-269.0,0.00027397,2]
[341593123,1731012636423,-500.0,0.00027397,2]
[341593124,1731012636432,-500.0,0.00027397,2]
[341593125,1731012636441,-500.0,0.00027397,2]
[341593126,1731012636451,-500.0,0.00027397,2]
[341593127,1731012636461,-500.0,0.00027397,2]
[341593128,1731012636472,-500.0,0.00027397,2]
[341593129,1731012636483,-500.0,0.00027397,2]
[341593130,1731012636492,-500.0,0.00027397,2]
[341593131,1731012636501,-500.0,0.00027397,2]
[341593132,1731012636511,-1031.71,0.00027397,2]
[341593133,1731012636520,-500.0,0.00027397,2]
[341593134,1731012636530,-500.0,0.00027397,2]
[341593135,1731012636539,-717.15,0.00027397,2]
[341593136,1731012636549,-500.0,0.00027397,2]
[341593137,1731012636558,-500.0,0.00027397,2]
[341593138,1731012636567,-719.17,0.00027397,2]
[341593139,1731012636576,-546.23,0.00027397,2]
[341593140,1731012636585,-500.0,0.00027397,2]
[341593141,1731012636595,-500.0,0.00027397,2]
[341593142,1731012636604,-500.0,0.00027397,2]
[341593143,1731012636613,-598.28,0.00027397,2]
[341593144,1731012636624,-500.0,0.00027397,2]
[341593145,1731012636634,-584.36,0.00027397,2]
[341593146,1731012636644,-500.0,0.00027397,2]
[341593147,1731012636654,-305.1046493,0.00027397,2]
[341593148,1731012636663,-564.99,0.00027397,2]
[341593149,1731012636674,-505.4,0.00027397,2]
[341593150,1731012636683,-500.0,0.00027397,2]
[341593151,1731012636692,-500.0,0.00027397,2]
[341593152,1731012636703,-500.0,0.00027397,2]
[341593153,1731012636713,-505.78,0.00027397,2]
[341593154,1731012636725,-1003.08,0.00027397,2]
[341593155,1731012636734,-500.0,0.00027397,2]
[341593156,1731012636743,-604.95,0.00027397,2]
[341593157,1731012636753,-500.0,0.00027397,2]
[341593158,1731012636763,-500.0,0.00027397,2]
[341593159,1731012636774,-647.93,0.00027397,2]
[341593160,1731012636783,-500.0,0.00027397,2]
[341593161,1731012636793,-500.0,0.00027397,2]
[341593162,1731012636802,-1263.32,0.00027397,2]
[341593163,1731012636812,-500.0,0.00027397,2]
[341593164,1731012636825,-500.0,0.00027397,2]
[341593165,1731012636835,-913.32,0.00027397,2]
[341593166,1731012636847,-500.0,0.00027397,2]
[341593167,1731012636856,-500.0,0.00027397,2]
[341593168,1731012636866,-500.0,0.00027397,2]
[341593169,1731012636876,-533.55,0.00027397,2]
[341593170,1731012636885,-500.0,0.00027397,2]
[341593171,1731012636896,-500.0,0.00027397,2]
[341593172,1731012636905,-500.0,0.00027397,2]
[341593173,1731012636914,-500.0,0.00027397,2]
[341593174,1731012636923,-500.0,0.00027397,2]
[341593175,1731012636933,-983.82,0.00027397,2]
[341593176,1731012636944,-500.0,0.00027397,2]
[341593177,1731012636954,-500.0,0.00027397,2]
[341593178,1731012636965,-500.0,0.00027397,2]
[341593179,1731012636976,-365.69750763,0.00027397,2]
[341593180,1731012636991,-500.0,0.00027397,2]
[341593181,1731012637000,-500.0,0.00027397,2]
[341593182,1731012637010,-500.0,0.00027397,2]
[341593183,1731012637020,-500.0,0.00027397,2]
[341593184,1731012637029,-500.0,0.00027397,2]
[341593185,1731012637038,-500.0,0.00027397,2]
[341593186,1731012637048,-564.6,0.00027397,2]
[341593187,1731012637058,-500.0,0.00027397,2]
[341593188,1731012637067,-500.0,0.00027397,2]
[341593189,1731012637076,-500.0,0.00027397,2]
[341593190,1731012637085,-603.19,0.00027397,2]
[341593191,1731012637095,-500.0,0.00027397,2]
[341593192,1731012637104,-500.0,0.00027397,2]
[341593193,1731012637113,-500.0,0.00027397,2]
[341593194,1731012637123,-500.0,0.00027397,2]
[341593195,1731012637133,-610.30084979,0.00027397,2]
[341593196,1731012637143,-498.64193585,0.00027397,2]
[341593197,1731012637152,-1203.52,0.00027397,2]
[341593198,1731012637162,-500.0,0.00027397,2]
[341593199,1731012637171,-500.0,0.00027397,2]
[341593200,1731012637181,-500.0,0.00027397,2]
[341593201,1731012637190,-500.0,0.00027397,2]
[341593202,1731012637199,-633.0,0.00027397,2]
[341593203,1731012637208,-500.0,0.00027397,2]
[341593204,1731012637217,-501.91,0.00027397,2]
[341593205,1731012637229,-500.0,0.00027397,2]
[341593206,1731012637238,-1178.34,0.00027397,2]
[341593207,1731012637247,-500.0,0.00027397,2]
[341593208,1731012637256,-687.32,0.00027397,2]
[341593209,1731012637266,-1440.61,0.00027397,2]
[341593210,1731012637275,-500.0,0.00027397,2]
[341593211,1731012637284,-500.0,0.00027397,2]
[341593212,1731012637293,-1253.66,0.00027397,2]
[341593213,1731012637303,-500.0,0.00027397,2]
[341593214,1731012637312,-500.0,0.00027397,2]
[341593215,1731012637321,-500.0,0.00027397,2]
[341593216,1731012637331,-500.0,0.00027397,2]
[341593217,1731012637340,-559.66,0.00027397,2]
[341593218,1731012637352,-1316.73,0.00027397,2]
[341593219,1731012637363,-500.0,0.00027397,2]
[341593220,1731012637372,-500.0,0.00027397,2]
[341593221,1731012637381,-1287.22,0.00027397,2]
[341593222,1731012637390,-2714.9,0.00027397,2]
[341593223,1731012637399,-500.0,0.00027397,2]
[341593224,1731012637408,-500.0,0.00027397,2]
[341593225,1731012637419,-1240.22,0.00027397,2]
[341593226,1731012637429,-500.0,0.00027397,2]
[341593227,1731012637439,-500.0,0.00027397,2]
[341593228,1731012637448,-500.0,0.00027397,2]
[341593229,1731012637457,-1039.8,0.00027397,2]
[341593230,1731012637466,-1254.76,0.00027397,2]
[341593231,1731012637476,-749.02,0.00027397,2]
[341593232,1731012637485,-756.09,0.00027397,2]
[341593233,1731012637495,-619.89,0.00027397,2]
[341593234,1731012637504,-974.06,0.00027397,2]
[341593235,1731012637515,-523.21,0.00027397,2]
[341593236,1731012637527,-626.21,0.00027397,2]
[341593237,1731012637536,-2495.49,0.00027397,2]
[341593238,1731012637546,-666.36,0.00027397,2]
[341593239,1731012637555,-500.0,0.00027397,2]
[341593240,1731012637563,-500.0,0.00027397,2]
[341593241,1731012637572,-500.0,0.00027397,2]
[341593242,1731012637582,-500.0,0.00027397,2]
[341593243,1731012637592,-500.0,0.00027397,2]
[341593244,1731012637603,-500.0,0.00027397,2]
[341593245,1731012637612,-858.15,0.00027397,2]
[341593246,1731012637622,-682.24,0.00027397,2]
[341593247,1731012637631,-500.0,0.00027397,2]
[341593248,1731012637642,-500.0,0.00027397,2]
[341593249,1731012637652,-500.0,0.00027397,2]
[341593250,1731012637662,-500.0,0.00027397,2]
[341593251,1731012637672,-500.0,0.00027397,2]
[341593252,1731012637683,-500.0,0.00027397,2]
[341593253,1731012637693,-1559.4,0.00027397,2]
[341593254,1731012637703,-1243.12,0.00027397,2]
[341593255,1731012637712,-500.0,0.00027397,2]
[341593256,1731012637722,-500.0,0.00027397,2]
[341593257,1731012637732,-500.0,0.00027397,2]
[341593259,1731012637742,-500.0,0.00027397,2]
[341593260,1731012637751,-827.78,0.00027397,2]
[341593261,1731012637760,-500.0,0.00027397,2]
[341593262,1731012637769,-500.0,0.00027397,2]
[341593263,1731012637778,-500.0,0.00027397,2]
[341593264,1731012637788,-744.19,0.00027397,2]
[341593265,1731012637797,-500.0,0.00027397,2]
[341593266,1731012637805,-500.0,0.00027397,2]
[341593267,1731012637814,-56.21003541,0.00027397,2]
[341593268,1731012637835,-824.89996459,0.00027397,2]
[341593269,1731012637846,-500.0,0.00027397,2]
[341593270,1731012637856,-379.4822371,0.00027397,2]
[341593271,1731012637865,-500.0,0.00027397,2]
[341593272,1731012637874,-506.18,0.00027397,2]
[341593273,1731012637883,-500.0,0.00027397,2]
[341593276,1731012637892,-500.0,0.00027397,2]
[341593278,1731012637901,-347.05294242,0.00027397,2]
[341593280,1731012637924,-152.94705758,0.00027397,2]
[341593282,1731012637933,-259.69915318,0.00027397,2]
[341593284,1731012637944,-240.30084682,0.00027397,2]
[341593285,1731012637954,-1143.44127984,0.00027397,2]
[341593286,1731012637965,-670.21068993,0.00027397,2]
[341593287,1731012637977,-578.0878976,0.00027397,2]
[341593288,1731012637988,-6183.77013263,0.00027397,2]
[341593289,1731012637998,-500.0,0.00027397,2]
[341593290,1731012638007,-500.0,0.00027397,2]
[341593291,1731012638016,-577.36084594,0.00027397,2]
[341593292,1731012638025,-500.0,0.00027397,2]
[341593293,1731012638035,-547.71,0.00027397,2]
[341593294,1731012638044,-500.0,0.00027397,2]
[341593295,1731012638054,-500.0,0.00027397,2]
[341593296,1731012638063,-500.0,0.00027397,2]
[341593297,1731012638072,-500.0,0.00027397,2]
[341593298,1731012638081,-500.0,0.00027397,2]
[341593299,1731012638091,-534.32,0.00027397,2]
[341593300,1731012638100,-500.0,0.00027397,2]
[341593301,1731012638109,-378.82355555,0.00027397,2]
[341593302,1731012638119,-500.0,0.00027397,2]
[341593303,1731012638128,-1391.28,0.00027397,2]
[341593304,1731012638137,-500.0,0.00027397,2]
[341593305,1731012638147,-500.0,0.00027397,2]
[341593306,1731012638156,-500.0,0.00027397,2]
[341593307,1731012638165,-500.0,0.00027397,2]
[341593308,1731012638175,-757.16,0.00027397,2]
[341593309,1731012638184,-575.2,0.00027397,2]
[341593310,1731012638194,-552.58,0.00027397,2]
[341593311,1731012638203,-565.13,0.00027397,2]
[341593312,1731012638212,-500.0,0.00027397,2]
[341593313,1731012638221,-551.87,0.00027397,2]
[341593314,1731012638230,-746.28,0.00027397,2]
[341593315,1731012638239,-786.92,0.00027397,2]
[341593316,1731012638249,-500.0,0.00027397,2]
[341593317,1731012638259,-500.0,0.00027397,2]
[341593318,1731012638268,-1053.7,0.00027397,2]
[341593319,1731012638277,-540.01,0.00027397,2]
[341593320,1731012638287,-500.0,0.00027397,2]
[341593321,1731012638296,-500.0,0.00027397,2]
[341593322,1731012638306,-535.92,0.00027397,2]
[341593323,1731012638315,-500.0,0.00027397,2]
[341593324,1731012638324,-500.0,0.00027397,2]
[341593325,1731012638333,-500.0,0.00027397,2]
[341593326,1731012638343,-500.0,0.00027397,2]
[341593327,1731012638354,-500.0,0.00027397,2]
[341593328,1731012638363,-200.0,0.00027397,2]
[341593329,1731012638372,-598.99108451,0.00027397,2]
[341593330,1731012638382,-892.59,0.00027397,2]
[341593331,1731012638392,-1238.42,0.00027397,2]
[341593332,1731012638401,-500.0,0.00027397,2]
[341593333,1731012638410,-1483.61,0.00027397,2]
[341593334,1731012638420,-500.0,0.00027397,2]
[341593335,1731012638430,-2700.66,0.00027397,2]
[341593336,1731012638439,-500.0,0.00027397,2]
[341593337,1731012638448,-578.91,0.00027397,2]
[341593338,1731012638457,-500.0,0.00027397,2]
[341593339,1731012638466,-1407.12,0.00027397,2]
[341593340,1731012638475,-500.0,0.00027397,2]
[341593341,1731012638484,-869.23,0.00027397,2]
[341593342,1731012638495,-636.97,0.00027397,2]
[341593343,1731012638507,-500.0,0.00027397,2]
[341593344,1731012638518,-870.48,0.00027397,2]
[341593345,1731012638529,-500.0,0.00027397,2]
[341593346,1731012638539,-573.84,0.00027397,2]
[341593347,1731012638548,-500.0,0.00027397,2]
[341593348,1731012638561,-500.0,0.00027397,2]
[341593349,1731012638570,-500.0,0.00027397,2]
[341593350,1731012638579,-500.0,0.00027397,2]
[341593351,1731012638588,-500.0,0.00027397,2]
[341593352,1731012638598,-529.93,0.00027397,2]
[341593353,1731012638608,-500.0,0.00027397,2]
[341593354,1731012638619,-500.0,0.00027397,2]
[341593355,1731012638629,-1567.8,0.00027397,2]
[341593356,1731012638639,-500.0,0.00027397,2]
[341593357,1731012638648,-500.0,0.00027397,2]
[341593358,1731012638658,-1032.92,0.00027397,2]
[341593359,1731012638667,-500.0,0.00027397,2]
[341593360,1731012638676,-500.0,0.00027397,2]
[341593361,1731012638685,-662.44,0.00027397,2]
[341593362,1731012638697,-500.0,0.00027397,2]
[341593363,1731012638708,-1046.06,0.00027397,2]
[341593364,1731012638717,-500.0,0.00027397,2]
[341593365,1731012638727,-500.0,0.00027397,2]
[341593366,1731012638736,-548.44,0.00027397,2]
[341593367,1731012638745,-2415.92,0.00027397,2]
[341593368,1731012638754,-633.03,0.00027397,2]